[Event "European Rapid Championship 2021"]
[Site "Katowice"]
[Date "2021.12.18"]
[Round "6.4"]
[White "Brodowski, Piotr"]
[Black "Tazbir, Marcin"]
[Result "1-0"]
[ECO "A21"]
[WhiteElo "2414"]
[BlackElo "2514"]
[Annotator "ChessBase"]
[PlyCount "59"]
[EventDate "2021.12.18"]
[EventType "swiss"]
[EventCountry "POL"]
[SourceTitle "playchess.com"]
[Source "ChessBase"]
[SourceQuality "1"]
[TimeControl "900+10"]

1. c4 {[%emt 0:00:03]} e5 {[%emt 0:00:01]} 2. Nc3 {[%emt 0:00:01]} Bb4 {
[%emt 0:00:09]} 3. g3 {[%emt 0:00:44]} Bxc3 {[%emt 0:00:01]} 4. dxc3 {[%emt 0:
00:28]} d6 {[%emt 0:00:02]} 5. Bg2 {[%emt 0:00:34]} f5 {[%emt 0:00:13]} 6. c5 {
[%emt 0:01:02]} dxc5 {[%emt 0:00:07]} 7. Qxd8+ {[%emt 0:00:03]} Kxd8 {[%emt 0:
00:01]} 8. Bg5+ {[%emt 0:00:58]} Nf6 {[%emt 0:00:03]} 9. O-O-O+ {[%emt 0:00:02]
} Ke7 {[%emt 0:00:02]} 10. e4 {[%emt 0:00:45]} h6 {[%emt 0:00:57]} 11. Bxf6+ {
[%emt 0:00:12]} gxf6 {[%emt 0:00:12]} 12. exf5 {[%emt 0:00:02]} Nc6 {[%emt 0:
00:22]} 13. Be4 {[%emt 0:01:07]} Nd8 {[%emt 0:00:29]} 14. f4 {[%emt 0:01:28]}
Nf7 {[%emt 0:00:33]} 15. fxe5 {[%emt 0:00:25]} fxe5 {[%emt 0:00:29]} 16. Nf3 {
[%emt 0:01:33]} Nd6 {[%emt 0:00:02]} 17. Rhe1 {[%emt 0:00:18]} Kf6 {[%emt 0:00:
02]} 18. Nxe5 {[%emt 0:01:37]} Nxe4 {[%emt 0:00:34]} 19. Rxe4 {[%emt 0:00:03]}
Bxf5 {[%emt 0:01:01]} 20. Rf1 {[%emt 0:00:14]} h5 {[%emt 0:02:02]} 21. Nd3 {
[%emt 0:02:32]} Kg6 {[%emt 0:00:11]} 22. Nf4+ {[%emt 0:00:03]} Kh6 {[%emt 0:00:
25]} 23. Re5 {[%emt 0:00:04]} Raf8 {[%emt 0:00:01]} 24. Rxc5 {[%emt 0:00:08]}
c6 {[%emt 0:00:14]} 25. Nxh5 {[%emt 0:01:22]} Be6 {[%emt 0:00:01]} 26. Nf4 {
[%emt 0:00:39]} Bxa2 {[%emt 0:00:02]} 27. Rd1 {[%emt 0:00:37]} Rf7 {[%emt 0:00:
24]} 28. Rd6+ {[%emt 0:00:11]} Kg7 {[%emt 0:00:10]} 29. Rg5+ {[%emt 0:00:04]}
Kh7 {[%emt 0:00:10]} 30. Rh5+ {[%emt 0:00:02]} 1-0

[Event "European Rapid Championship 2021"]
[Site "Katowice"]
[Date "2021.12.18"]
[Round "6.4"]
[White "Nytra, Ondrej"]
[Black "Sharankov, Grigory"]
[Result "0-1"]
[ECO "C02"]
[WhiteElo "1798"]
[BlackElo "2220"]
[Annotator "NA"]
[PlyCount "40"]
[EventDate "2021.12.18"]
[EventType "swiss"]
[EventCountry "POL"]
[SourceTitle "playchess.com"]
[Source "ChessBase"]
[SourceQuality "1"]
[TimeControl "900+10"]

1. e4 {[%emt 0:00:02]} e6 {[%emt 0:00:01]} 2. d4 {[%emt 0:00:01]} d5 {[%emt 0:
00:01]} 3. e5 {[%emt 0:00:01]} c5 {[%emt 0:00:01]} 4. c3 {[%emt 0:00:01]} Nc6 {
[%emt 0:00:01]} 5. Nf3 {[%emt 0:00:01]} Bd7 {[%emt 0:00:19]} 6. Be2 {[%emt 0:
00:04]} Qc7 {[%emt 0:00:12]} 7. O-O {[%emt 0:00:11]} f6 {[%emt 0:00:14]} 8.
exf6 {[%emt 0:00:04]} Nxf6 {[%emt 0:00:04]} 9. Re1 {[%emt 0:00:01]} Bd6 {
[%emt 0:00:11]} 10. Bd3 {[%emt 0:00:04]} O-O {[%emt 0:00:11]} 11. Bg5 {[%emt 0:
00:30]} Ng4 {[%emt 0:01:31]} 12. h3 {[%emt 0:00:27]} Bh2+ {[%emt 0:00:29]} 13.
Kf1 {[%emt 0:00:02]} Nxf2 {[%emt 0:00:02]} 14. Kxf2 {[%emt 0:00:01]} Qg3+ {
[%emt 0:00:02]} 15. Ke3 {[%emt 0:00:03]} Rxf3+ {[%emt 0:00:57]} 16. gxf3 {
[%emt 0:01:11]} Qxg5+ {[%emt 0:00:04]} 17. Ke2 {[%emt 0:00:41]} Qg2+ {[%emt 0:
00:15]} 18. Ke3 {[%emt 0:00:09]} Rf8 {[%emt 0:00:12]} 19. Be2 {[%emt 0:00:08]}
Bf4+ {[%emt 0:00:20]} 20. Kd3 {[%emt 0:00:01]} Qg6# {[%emt 0:00:02]} 0-1

[Event "European Rapid Championship 2021"]
[Site "Katowice"]
[Date "2021.12.18"]
[Round "6.5"]
[White "Warchol, Bartosz"]
[Black "Cukrowski, Filip"]
[Result "1/2-1/2"]
[ECO "E15"]
[WhiteElo "1942"]
[BlackElo "2373"]
[Annotator "ChessBase"]
[PlyCount "161"]
[EventDate "2021.12.18"]
[EventType "swiss"]
[EventCountry "POL"]
[SourceTitle "playchess.com"]
[Source "ChessBase"]
[SourceQuality "1"]
[TimeControl "900+10"]

1. d4 {[%emt 0:00:02]} Nf6 {[%emt 0:00:01]} 2. c4 {[%emt 0:00:02]} e6 {[%emt 0:
00:01]} 3. Nf3 {[%emt 0:00:02]} b6 {[%emt 0:00:01]} 4. g3 {[%emt 0:00:08]} Bb7
{[%emt 0:00:01]} 5. Bg2 {[%emt 0:00:02]} c5 {[%emt 0:00:01]} 6. O-O {[%emt 0:
00:18]} cxd4 {[%emt 0:00:01]} 7. Nxd4 {[%emt 0:00:18]} Bxg2 {[%emt 0:00:02]} 8.
Kxg2 {[%emt 0:00:02]} Qc8 {[%emt 0:00:01]} 9. b3 {[%emt 0:01:03]} Nc6 {[%emt 0:
00:02]} 10. Nb5 {[%emt 0:01:10]} Qb8 {[%emt 0:04:32]} 11. Bf4 {[%emt 0:00:52]}
e5 {[%emt 0:00:42]} 12. Bg5 {[%emt 0:00:07]} Ne4 {[%emt 0:00:14]} 13. Be3 {
[%emt 0:00:36]} Bb4 {[%emt 0:02:35]} 14. a3 {[%emt 0:00:48]} a6 {[%emt 0:00:42]
} 15. axb4 {[%emt 0:01:11]} axb5 {[%emt 0:00:01]} 16. Rxa8 {[%emt 0:00:21]}
Qxa8 {[%emt 0:00:01]} 17. f3 {[%emt 0:00:51]} Nf6 {[%emt 0:00:06]} 18. cxb5 {
[%emt 0:01:29]} Nxb4 {[%emt 0:00:05]} 19. Qd6 {[%emt 0:01:02]} Nbd5 {[%emt 0:
00:06]} 20. Qxe5+ {[%emt 0:01:01]} Kd8 {[%emt 0:00:44]} 21. Rc1 {[%emt 0:01:14]
} Qb7 {[%emt 0:01:01]} 22. Bg5 {[%emt 0:01:12]} Re8 23. Qb2 {[%emt 0:00:06]} h6
{[%emt 0:04:41]} 24. Bxf6+ {[%emt 0:00:20]} Nxf6 {[%emt 0:00:01]} 25. e4 {
[%emt 0:00:33]} Re6 {[%emt 0:00:02]} 26. Nd2 {[%emt 0:00:15]} d5 {[%emt 0:00:
27]} 27. Qd4 {[%emt 0:00:44]} Ke8 {[%emt 0:00:16]} 28. Kf2 {[%emt 0:00:59]}
dxe4 {[%emt 0:00:26]} 29. Nxe4 {[%emt 0:00:31]} Nxe4+ {[%emt 0:00:05]} 30. fxe4
{[%emt 0:00:01]} Qd7 {[%emt 0:00:49]} 31. Ke3 {[%emt 0:01:13]} f5 {[%emt 0:01:
03]} 32. Qxd7+ {[%emt 0:00:40]} Kxd7 {[%emt 0:00:01]} 33. Rc4 {[%emt 0:00:01]}
Re5 {[%emt 0:00:14]} 34. Rb4 {[%emt 0:00:32]} Kd6 {[%emt 0:00:32]} 35. Kf4 {
[%emt 0:00:54]} g5+ {[%emt 0:00:02]} 36. Kf3 {[%emt 0:00:01]} fxe4+ {[%emt 0:
01:05]} 37. Rxe4 {[%emt 0:00:08]} Rxb5 {[%emt 0:00:02]} 38. b4 {[%emt 0:00:17]}
h5 {[%emt 0:00:03]} 39. Ke3 {[%emt 0:00:18]} Rd5 {[%emt 0:00:15]} 40. Rd4 {
[%emt 0:00:08]} Ke5 {[%emt 0:00:05]} 41. Re4+ {[%emt 0:00:04]} Kf5 {[%emt 0:00:
24]} 42. Rc4 {[%emt 0:00:01]} Rb5 {[%emt 0:00:11]} 43. h3 {[%emt 0:00:15]} g4 {
[%emt 0:00:07]} 44. hxg4+ {[%emt 0:00:07]} hxg4 {[%emt 0:00:01]} 45. Rf4+ {
[%emt 0:00:08]} Kg5 {[%emt 0:00:01]} 46. Rd4 {[%emt 0:00:11]} Rf5 {[%emt 0:00:
06]} 47. Rd3 {[%emt 0:00:19]} Rb5 {[%emt 0:00:26]} 48. Rd4 {[%emt 0:00:05]} Rf5
{[%emt 0:00:02]} 49. Ke4 {[%emt 0:00:04]} Rf3 {[%emt 0:00:22]} 50. Rd3 {
[%emt 0:00:20]} Rf6 {[%emt 0:00:18]} 51. Rd5+ {[%emt 0:00:13]} Kg6 {[%emt 0:00:
02]} 52. Rd7 {[%emt 0:00:17]} Rc6 {[%emt 0:00:28]} 53. Rd4 {[%emt 0:00:10]} Rc3
{[%emt 0:00:03]} 54. Kf4 {[%emt 0:00:03]} Kh5 {[%emt 0:00:01]} 55. Rd5+ {
[%emt 0:00:07]} Kh6 {[%emt 0:00:01]} 56. Rd6+ {[%emt 0:00:18]} Kg7 {[%emt 0:00:
07]} 57. Rxb6 {[%emt 0:00:08]} Rc4+ {[%emt 0:00:01]} 58. Kg5 {[%emt 0:00:05]}
Rd4 {[%emt 0:00:08]} 59. b5 {[%emt 0:00:08]} Rb4 {[%emt 0:00:02]} 60. Rb7+ {
[%emt 0:00:05]} Kf8 {[%emt 0:00:03]} 61. b6 {[%emt 0:00:06]} Ke8 {[%emt 0:00:
03]} 62. Rb8+ {[%emt 0:00:30]} Kf7 {[%emt 0:00:01]} 63. b7 {[%emt 0:00:04]} Kg7
{[%emt 0:00:02]} 64. Kf5 {[%emt 0:00:04]} Kh7 {[%emt 0:00:12]} 65. Ke5 {
[%emt 0:00:14]} Rb1 {[%emt 0:00:11]} 66. Kf6 {[%emt 0:00:17]} Rb5 {[%emt 0:00:
18]} 67. Rf8 {[%emt 0:00:13]} Rxb7 {[%emt 0:00:01]} 68. Rf7+ {[%emt 0:00:02]}
Rxf7+ {[%emt 0:00:01]} 69. Kxf7 {[%emt 0:00:01]} Kh6 {[%emt 0:00:02]} 70. Kf6 {
[%emt 0:00:01]} Kh7 {[%emt 0:00:02]} 71. Kf5 {[%emt 0:00:04]} Kg7 {[%emt 0:00:
01]} 72. Kxg4 {[%emt 0:00:01]} Kg6 {[%emt 0:00:00]} 73. Kf4 {[%emt 0:00:01]}
Kf6 {[%emt 0:00:01]} 74. g4 {[%emt 0:00:02]} Kg6 {[%emt 0:00:00]} 75. g5 {
[%emt 0:00:01]} Kg7 {[%emt 0:00:01]} 76. Kf5 {[%emt 0:00:00]} Kf7 {[%emt 0:00:
01]} 77. g6+ {[%emt 0:00:02]} Kg7 {[%emt 0:00:00]} 78. Kg5 {[%emt 0:00:01]} Kg8
{[%emt 0:00:01]} 79. Kf6 {[%emt 0:00:01]} Kf8 {[%emt 0:00:01]} 80. g7+ {
[%emt 0:00:02]} Kg8 {[%emt 0:00:00]} 81. Kg6 1/2-1/2

[Event "European Rapid Championship 2021"]
[Site "Katowice"]
[Date "2021.12.18"]
[Round "6.6"]
[White "Sliwicki, Damian"]
[Black "Pultinevicius, Paulius"]
[Result "0-1"]
[ECO "B10"]
[WhiteElo "2107"]
[BlackElo "2536"]
[Annotator "ChessBase"]
[PlyCount "74"]
[EventDate "2021.12.18"]
[EventType "swiss"]
[EventCountry "POL"]
[SourceTitle "playchess.com"]
[Source "ChessBase"]
[SourceQuality "1"]
[TimeControl "900+10"]

1. e4 {[%emt 0:00:02]} c6 {[%emt 0:00:00]} 2. Nc3 {[%emt 0:00:03]} d5 {[%emt 0:
00:01]} 3. Nf3 {[%emt 0:00:00]} dxe4 {[%emt 0:00:01]} 4. Nxe4 {[%emt 0:00:01]}
Nf6 {[%emt 0:00:01]} 5. Qe2 {[%emt 0:00:02]} Nxe4 {[%emt 0:00:01]} 6. Qxe4 {
[%emt 0:00:01]} Be6 {[%emt 0:00:00]} 7. d4 {[%emt 0:00:25]} Nd7 {[%emt 0:00:06]
} 8. Bd2 {[%emt 0:00:09]} Nf6 {[%emt 0:00:02]} 9. Qh4 {[%emt 0:00:03]} Bd5 {
[%emt 0:00:15]} 10. Bd3 {[%emt 0:01:14]} Bxf3 {[%emt 0:00:02]} 11. gxf3 {
[%emt 0:00:01]} g6 {[%emt 0:00:01]} 12. O-O-O {[%emt 0:00:56]} Bg7 {[%emt 0:00:
01]} 13. f4 {[%emt 0:00:46]} e6 {[%emt 0:00:01]} 14. f5 {[%emt 0:00:27]} Nd5 {
[%emt 0:00:11]} 15. Qh3 {[%emt 0:00:39]} exf5 {[%emt 0:00:10]} 16. Rde1+ {
[%emt 0:01:04]} Kf8 {[%emt 0:00:01]} 17. Rhg1 {[%emt 0:00:17]} Bxd4 {[%emt 0:
00:42]} 18. Bxf5 {[%emt 0:01:40]} Bg7 {[%emt 0:02:37]} 19. c4 {[%emt 0:01:47]}
Nb6 {[%emt 0:00:54]} 20. Rd1 {[%emt 0:02:18]} Kg8 {[%emt 0:01:33]} 21. Bc3 {
[%emt 0:00:50]} Qf8 {[%emt 0:00:04]} 22. Qd3 {[%emt 0:01:01]} Bxc3 {[%emt 0:00:
32]} 23. Qxc3 {[%emt 0:00:10]} Qg7 {[%emt 0:00:01]} 24. Qc2 {[%emt 0:00:13]}
Qf6 {[%emt 0:00:02]} 25. Rg3 {[%emt 0:00:46]} Kg7 {[%emt 0:00:56]} 26. Rdg1 {
[%emt 0:00:32]} Rhe8 {[%emt 0:00:01]} 27. h4 {[%emt 0:00:14]} Re5 {[%emt 0:00:
01]} 28. Bd3 {[%emt 0:01:29]} Rae8 {[%emt 0:00:01]} 29. Qd2 {[%emt 0:00:01]}
Na4 {[%emt 0:00:33]} 30. Re3 {[%emt 0:02:35]} Rxe3 {[%emt 0:00:06]} 31. fxe3 {
[%emt 0:00:00]} Rd8 {[%emt 0:00:15]} 32. Qc2 {[%emt 0:00:30]} Rxd3 {[%emt 0:00:
25]} 33. Qxa4 {[%emt 0:00:06]} Rxe3 {[%emt 0:00:04]} 34. Qxa7 {[%emt 0:00:02]}
Re2 {[%emt 0:00:32]} 35. Qa3 {[%emt 0:00:23]} Qf4+ {[%emt 0:00:19]} 36. Kb1 {
[%emt 0:00:00]} Qe4+ {[%emt 0:00:01]} 37. Ka1 {[%emt 0:00:01]} Re1+ {[%emt 0:
00:02]} 0-1

[Event "European Rapid Championship 2021"]
[Site "Katowice"]
[Date "2021.12.18"]
[Round "6.7"]
[White "Kalogeris, Ioannis"]
[Black "Sumets, Andrey"]
[Result "0-1"]
[ECO "B12"]
[WhiteElo "2357"]
[BlackElo "2508"]
[Annotator "ChessBase"]
[PlyCount "124"]
[EventDate "2021.12.18"]
[EventType "swiss"]
[EventCountry "POL"]
[SourceTitle "playchess.com"]
[Source "ChessBase"]
[SourceQuality "1"]
[TimeControl "900+10"]

1. e4 {[%emt 0:00:04]} c6 {[%emt 0:00:09]} 2. d4 {[%emt 0:00:12]} d5 {[%emt 0:
00:02]} 3. e5 {[%emt 0:00:40]} Bf5 {[%emt 0:00:03]} 4. Nf3 {[%emt 0:00:07]} e6
{[%emt 0:00:03]} 5. Nbd2 {[%emt 0:00:01]} c5 {[%emt 0:02:17]} 6. dxc5 {[%emt 0:
00:50]} Bxc5 {[%emt 0:00:24]} 7. Nb3 {[%emt 0:01:00]} Bb6 {[%emt 0:00:10]} 8.
Nfd4 {[%emt 0:01:24]} Ne7 {[%emt 0:01:35]} 9. h4 {[%emt 0:01:04]} h6 {[%emt 0:
01:18]} 10. h5 {[%emt 0:02:12]} Nbc6 {[%emt 0:00:18]} 11. Nxf5 {[%emt 0:01:15]}
Nxf5 {[%emt 0:00:02]} 12. g4 {[%emt 0:00:43]} Nfe7 {[%emt 0:02:45]} 13. f4 {
[%emt 0:00:15]} d4 {[%emt 0:00:29]} 14. Bd3 {[%emt 0:03:53]} Nd5 {[%emt 0:00:
09]} 15. a3 {[%emt 0:00:09]} Ne3 {[%emt 0:03:15]} 16. Qf3 {[%emt 0:00:08]} Rc8
{[%emt 0:00:01]} 17. Bxe3 {[%emt 0:00:26]} dxe3 {[%emt 0:00:05]} 18. O-O-O {
[%emt 0:00:02]} Qe7 {[%emt 0:00:30]} 19. Qe4 {[%emt 0:00:12]} Rd8 {[%emt 0:00:
13]} 20. Bb5 {[%emt 0:00:26]} Qc7 {[%emt 0:00:30]} 21. c4 {[%emt 0:01:39]} O-O
{[%emt 0:01:04]} 22. Bxc6 {[%emt 0:00:58]} bxc6 {[%emt 0:03:07]} 23. c5 {
[%emt 0:00:02]} Ba5 {[%emt 0:00:01]} 24. Rd6 {[%emt 0:00:19]} Rb8 {[%emt 0:00:
11]} 25. Qxe3 {[%emt 0:00:20]} Qb7 {[%emt 0:00:01]} 26. Kc2 {[%emt 0:00:05]}
Bc7 {[%emt 0:00:10]} 27. Rd7 {[%emt 0:00:09]} a5 {[%emt 0:00:02]} 28. a4 {
[%emt 0:00:13]} Qb4 {[%emt 0:00:13]} 29. Rd4 {[%emt 0:00:24]} Qb7 {[%emt 0:00:
06]} 30. g5 {[%emt 0:00:03]} hxg5 {[%emt 0:00:17]} 31. h6 {[%emt 0:00:08]} g6 {
[%emt 0:00:27]} 32. h7+ {[%emt 0:00:05]} Kh8 {[%emt 0:00:02]} 33. fxg5 {
[%emt 0:00:03]} Bd8 {[%emt 0:00:01]} 34. Rh3 {[%emt 0:00:17]} Be7 {[%emt 0:00:
06]} 35. Qf4 Qa7 {[%emt 0:00:39]} 36. Rhd3 {[%emt 0:00:20]} Rb7 {[%emt 0:00:03]
} 37. Rd6 {[%emt 0:00:11]} Rb4 {[%emt 0:00:07]} 38. Qg3 {[%emt 0:00:30]} Bxd6 {
[%emt 0:00:05]} 39. exd6 {[%emt 0:00:03]} Rxb3 {[%emt 0:00:12]} 40. Kxb3 {
[%emt 0:00:14]} Qxc5 {[%emt 0:00:03]} 41. d7 {[%emt 0:00:18]} Rd8 {[%emt 0:00:
13]} 42. Ka2 {[%emt 0:00:28]} Qc4+ {[%emt 0:00:16]} 43. Kb1 {[%emt 0:00:01]}
Qe4 {[%emt 0:00:01]} 44. Qd6 {[%emt 0:00:17]} Kxh7 {[%emt 0:00:27]} 45. b3 {
[%emt 0:00:00]} c5 {[%emt 0:00:04]} 46. Kb2 {[%emt 0:00:09]} Kg7 {[%emt 0:00:
06]} 47. Rd2 {[%emt 0:00:10]} Qe3 {[%emt 0:00:08]} 48. Rc2 {[%emt 0:00:28]}
Qxg5 {[%emt 0:00:17]} 49. Rxc5 {[%emt 0:00:05]} Qg2+ {[%emt 0:00:12]} 50. Ka3 {
[%emt 0:00:06]} Qb7 {[%emt 0:00:02]} 51. Rc7 {[%emt 0:00:04]} Qd5 {[%emt 0:00:
07]} 52. Qe7 {[%emt 0:00:24]} Qd1 {[%emt 0:00:10]} 53. b4 {[%emt 0:00:11]} Qa1+
{[%emt 0:00:07]} 54. Kb3 {[%emt 0:00:01]} Qb1+ {[%emt 0:00:01]} 55. Ka3 {
[%emt 0:00:07]} Qa1+ {[%emt 0:00:28]} 56. Kb3 {[%emt 0:00:01]} Qd1+ {[%emt 0:
00:10]} 57. Kb2 {[%emt 0:00:16]} Qd4+ {[%emt 0:00:06]} 58. Kb3 {[%emt 0:00:14]}
Qd3+ {[%emt 0:00:05]} 59. Kb2 {[%emt 0:00:02]} Qd2+ {[%emt 0:00:15]} 60. Kb3 {
[%emt 0:00:07]} Qd5+ {[%emt 0:00:03]} 61. Ka3 {[%emt 0:00:23]} axb4+ {[%emt 0:
00:06]} 62. Kb2 {[%emt 0:00:16]} Qe5+ {[%emt 0:00:01]} 0-1

[Event "European Rapid Championship 2021"]
[Site "Katowice"]
[Date "2021.12.18"]
[Round "6.7"]
[White "Rigopoulos-Tsigkos, Alexandros"]
[Black "Kjartansson, Gudmundur"]
[Result "1/2-1/2"]
[ECO "B12"]
[WhiteElo "2076"]
[BlackElo "2402"]
[Annotator "ChessBase"]
[PlyCount "192"]
[EventDate "2021.12.18"]
[EventType "swiss"]
[EventCountry "POL"]
[SourceTitle "playchess.com"]
[Source "ChessBase"]
[SourceQuality "1"]
[TimeControl "900+10"]

1. e4 {[%emt 0:00:02]} c6 {[%emt 0:00:01]} 2. d4 {[%emt 0:00:03]} d5 {[%emt 0:
00:01]} 3. e5 {[%emt 0:00:02]} Bf5 {[%emt 0:00:01]} 4. h4 {[%emt 0:00:02]} h5 {
[%emt 0:00:02]} 5. c4 {[%emt 0:00:02]} e6 {[%emt 0:00:02]} 6. Nc3 {[%emt 0:00:
06]} Ne7 {[%emt 0:01:14]} 7. Bg5 {[%emt 0:00:06]} dxc4 {[%emt 0:00:13]} 8. Bxc4
{[%emt 0:00:13]} Nd7 {[%emt 0:00:04]} 9. Nge2 {[%emt 0:00:24]} Nb6 {[%emt 0:00:
52]} 10. Bb3 {[%emt 0:00:12]} Qd7 {[%emt 0:00:21]} 11. Ng3 {[%emt 0:00:53]} Bg6
{[%emt 0:00:03]} 12. O-O {[%emt 0:01:53]} Nf5 {[%emt 0:00:14]} 13. Nxf5 {
[%emt 0:00:29]} Bxf5 {[%emt 0:00:02]} 14. Qd2 {[%emt 0:00:23]} Be7 {[%emt 0:00:
26]} 15. Rad1 {[%emt 0:00:19]} Bxg5 {[%emt 0:01:32]} 16. Qxg5 {[%emt 0:00:08]}
Qe7 {[%emt 0:00:02]} 17. Qxe7+ {[%emt 0:01:24]} Kxe7 {[%emt 0:00:02]} 18. f3 {
[%emt 0:00:15]} Rag8 {[%emt 0:01:05]} 19. Kf2 {[%emt 0:01:01]} g5 {[%emt 0:01:
20]} 20. hxg5 {[%emt 0:00:14]} Rxg5 {[%emt 0:00:01]} 21. g3 {[%emt 0:00:44]}
Rc8 {[%emt 0:00:26]} 22. Rh1 {[%emt 0:00:40]} c5 {[%emt 0:00:17]} 23. dxc5 {
[%emt 0:01:16]} Rxc5 {[%emt 0:00:18]} 24. f4 {[%emt 0:00:03]} Rg8 {[%emt 0:00:
06]} 25. Rd4 {[%emt 0:00:25]} Bg6 {[%emt 0:01:50]} 26. Rhd1 {[%emt 0:00:39]}
Rgc8 {[%emt 0:00:10]} 27. Na4 {[%emt 0:01:18]} Nxa4 28. Rd7+ {[%emt 0:00:03]}
Kf8 {[%emt 0:00:20]} 29. Bxa4 {[%emt 0:00:05]} b5 {[%emt 0:00:15]} 30. Bb3 {
[%emt 0:00:35]} a5 {[%emt 0:00:05]} 31. Rd8+ {[%emt 0:00:11]} Kg7 {[%emt 0:02:
07]} 32. Rxc8 {[%emt 0:00:10]} Rxc8 {[%emt 0:00:01]} 33. Rd2 {[%emt 0:00:37]}
Rc1 {[%emt 0:00:20]} 34. Rd1 {[%emt 0:00:37]} Rc7 {[%emt 0:00:31]} 35. Rd2 {
[%emt 0:00:01]} Bb1 {[%emt 0:00:33]} 36. a3 {[%emt 0:00:10]} Kg6 {[%emt 0:00:
30]} 37. Bd1 {[%emt 0:00:12]} Be4 {[%emt 0:00:22]} 38. Ke3 {[%emt 0:00:19]} Bf5
{[%emt 0:00:45]} 39. Rh2 {[%emt 0:01:03]} Bg4 {[%emt 0:00:02]} 40. Bc2+ {
[%emt 0:00:17]} f5 {[%emt 0:00:19]} 41. Bd3 {[%emt 0:00:42]} Bd1 {[%emt 0:02:
02]} 42. Bxb5 {[%emt 0:01:04]} a4 {[%emt 0:00:11]} 43. Rd2 {[%emt 0:00:37]} Bb3
{[%emt 0:00:02]} 44. Rh2 {[%emt 0:00:40]} Bd1 {[%emt 0:01:02]} 45. Rh1 {
[%emt 0:00:23]} Bb3 {[%emt 0:00:13]} 46. Be8+ {[%emt 0:00:13]} Kg7 {[%emt 0:00:
02]} 47. Rh2 {[%emt 0:00:16]} Rc8 {[%emt 0:00:31]} 48. Bxh5 {[%emt 0:00:33]}
Rh8 {[%emt 0:00:16]} 49. Rh4 {[%emt 0:00:19]} Bc2 {[%emt 0:00:32]} 50. Kd2 {
[%emt 0:00:01]} Bb3 {[%emt 0:00:20]} 51. Be2 {[%emt 0:00:12]} Rb8 {[%emt 0:00:
58]} 52. Rh2 {[%emt 0:00:38]} Bd5 {[%emt 0:00:11]} 53. Kc1 {[%emt 0:00:13]} Rb3
{[%emt 0:00:18]} 54. Bd1 {[%emt 0:00:12]} Rxg3 {[%emt 0:00:02]} 55. Bxa4 {
[%emt 0:00:08]} Rf3 {[%emt 0:00:07]} 56. Rh4 {[%emt 0:00:09]} Rf2 {[%emt 0:00:
02]} 57. Bc2 {[%emt 0:00:12]} Bf3 {[%emt 0:00:43]} 58. a4 {[%emt 0:00:12]} Bg4
{[%emt 0:00:04]} 59. a5 {[%emt 0:00:13]} Rxf4 {[%emt 0:00:03]} 60. Rh1 {
[%emt 0:00:07]} Rc4 {[%emt 0:00:06]} 61. b3 {[%emt 0:00:22]} Rc5 {[%emt 0:00:
03]} 62. a6 {[%emt 0:00:04]} Ra5 {[%emt 0:00:01]} 63. Kb2 {[%emt 0:00:15]} Rxa6
{[%emt 0:00:01]} 64. b4 {[%emt 0:00:14]} Kg6 {[%emt 0:00:08]} 65. b5 {[%emt 0:
00:01]} Rb6 {[%emt 0:00:01]} 66. Bd3 {[%emt 0:00:01]} Kg5 {[%emt 0:00:01]} 67.
Kc3 {[%emt 0:00:04]} Rb8 {[%emt 0:00:10]} 68. Kb4 {[%emt 0:00:02]} Kf4 {
[%emt 0:00:03]} 69. Re1 {[%emt 0:00:04]} Bf3 {[%emt 0:00:01]} 70. Bc4 {[%emt 0:
00:06]} Be4 {[%emt 0:00:07]} 71. Bxe6 {[%emt 0:00:03]} Kxe5 {[%emt 0:00:02]}
72. Bc4 {[%emt 0:00:07]} Kd4 {[%emt 0:00:09]} 73. Rd1+ {[%emt 0:00:05]} Ke3 {
[%emt 0:00:02]} 74. Re1+ {[%emt 0:00:03]} Kd4 {[%emt 0:00:17]} 75. Rd1+ {
[%emt 0:00:01]} Ke5 {[%emt 0:00:05]} 76. Re1 {[%emt 0:00:01]} Kd4 {[%emt 0:00:
22]} 77. Rd1+ {[%emt 0:00:05]} Ke3 {[%emt 0:00:02]} 78. Re1+ {[%emt 0:00:01]}
Kf2 {[%emt 0:00:05]} 79. Rf1+ {[%emt 0:00:13]} Kg3 {[%emt 0:00:07]} 80. Re1 {
[%emt 0:00:12]} Bg2 {[%emt 0:00:04]} 81. Re3+ {[%emt 0:00:16]} Kg4 {[%emt 0:00:
55]} 82. Be6 {[%emt 0:00:30]} Kf4 {[%emt 0:00:40]} 83. Rc3 {[%emt 0:00:51]} Ke5
{[%emt 0:00:12]} 84. Bd7 {[%emt 0:00:25]} f4 {[%emt 0:00:06]} 85. Rc5+ {
[%emt 0:00:01]} Kd4 {[%emt 0:00:20]} 86. Rc4+ {[%emt 0:00:05]} Ke3 {[%emt 0:00:
02]} 87. Rc3+ {[%emt 0:00:03]} Kd2 {[%emt 0:00:03]} 88. Rc8 {[%emt 0:00:34]}
Rb7 {[%emt 0:00:41]} 89. Bc6 {[%emt 0:00:15]} Bxc6 {[%emt 0:00:03]} 90. Rxc6 {
[%emt 0:00:03]} f3 {[%emt 0:00:03]} 91. Rf6 {[%emt 0:00:03]} Ke3 {[%emt 0:00:
09]} 92. Kc5 {[%emt 0:00:03]} Rc7+ {[%emt 0:00:04]} 93. Kd6 {[%emt 0:00:11]}
Rc4 {[%emt 0:00:04]} 94. b6 {[%emt 0:00:25]} Rb4 {[%emt 0:00:02]} 95. Kc7 {
[%emt 0:00:10]} f2 {[%emt 0:00:02]} 96. Rxf2 {[%emt 0:00:04]} Rxb6 {[%emt 0:00:
03]} 1/2-1/2